bitfinex-derivatives/quotes_BNBF0:USTF0_20230831
["timestamp","ask_amount","ask_price","bid_price","bid_amount"]
[1693446277039,0.07350273,223.21,222.99,0.07328602]
[1693446278939,0.07350273,223.21,222.98,0.89477985]
[1693446279141,0.07350273,223.21,222.99,0.07328602]
[1693446280537,0.07350273,223.21,223.0,0.82199386]
[1693446284549,0.07350273,223.2,223.0,0.82199386]
[1693446289447,0.07350273,223.2,223.0,0.89527988]
[1693446289651,0.07350273,223.2,223.01,0.82199386]
[1693446290153,0.07350273,223.2,222.99,0.07328602]
[1693446290353,0.07350273,223.2,223.0,0.89526834]
[1693446290552,0.07350273,223.2,223.01,0.82198232]
[1693446290748,0.07350273,223.2,222.99,0.07328602]
[1693446290954,0.07350273,223.2,223.0,0.82198328]
[1693446291354,0.07350273,223.2,223.0,0.8952693]
[1693446291553,0.07350273,223.2,223.01,0.82198328]
[1693446296457,0.07350273,223.2,223.0,0.07328602]
[1693446297059,0.07350273,223.2,223.01,0.8220141]
[1693446297461,0.07350273,223.2,222.99,0.07328602]
[1693446297657,0.07350273,223.2,223.0,0.8953064]
[1693446297861,0.07350273,223.2,223.0,0.07328602]
[1693446300762,0.07350273,223.2,223.01,0.82200751]
[1693446300962,0.07350273,223.2,223.0,0.07328602]
[1693446301358,0.07350273,223.2,223.01,0.82200529]
[1693446302068,0.07350273,223.21,223.01,0.82200529]
[1693446306369,0.07350273,223.22,223.01,0.89529131]
[1693446306565,0.07350273,223.22,223.02,0.82200529]
[1693446307373,0.07350273,223.22,223.01,0.82200529]
[1693446317679,0.14700546,223.25,223.01,0.82200529]
[1693446317680,0.07350273,223.23,223.01,0.82200529]
[1693446319395,2.4500911,223.36,223.01,0.82200529]
[1693446319577,0.07345408,223.23,223.0,0.07331577]
[1693446319878,0.07345408,223.23,223.01,0.82200529]
[1693446325284,0.07345408,223.22,223.01,0.82200529]
[1693446325785,0.07345408,223.23,223.01,0.82200529]
[1693446326178,0.07345408,223.22,223.01,0.82200529]
[1693446334290,0.07345408,223.21,223.01,0.89532106]
[1693446334490,0.07345408,223.21,223.02,0.82200529]
[1693446335191,0.07345408,223.22,223.02,0.82200529]
[1693446337087,0.07345408,223.22,223.02,0.89532106]
[1693446337288,0.07345408,223.22,223.03,0.82200529]
[1693446337692,0.07345408,223.22,223.02,0.82200529]
[1693446337992,0.07345408,223.22,223.03,0.82162348]
[1693446338187,0.07345408,223.22,223.01,0.07331577]
[1693446338392,0.07345408,223.22,223.02,0.82162419]
[1693446347395,0.07345408,223.21,223.02,0.82162419]
[1693446347600,0.07345408,223.21,223.0,0.07331577]
[1693446347800,0.07345408,223.21,223.01,0.82175779]
[1693446356707,0.07345408,223.21,222.99,0.07331577]
[1693446356906,0.07345408,223.21,223.0,0.82183414]
[1693446358402,0.07345408,223.22,223.0,0.82183414]
[1693446359105,0.07345408,223.21,223.0,0.82183414]
[1693446361605,0.07345408,223.22,223.0,0.82183414]
[1693446362105,0.97938785,223.29,223.0,0.82183414]
[1693446362106,0.07345408,223.21,223.0,0.82183414]
[1693446363701,0.07345408,223.21,222.98,0.07331577]
[1693446363906,0.07345408,223.21,222.99,0.82201472]
[1693446368511,0.07345408,223.22,222.99,0.82201472]
[1693446376515,0.07345408,223.21,222.99,0.82201472]
[1693446380415,0.07345408,223.21,222.99,0.89533049]
[1693446380616,0.07345408,223.21,223.0,0.82201472]
[1693446383420,0.07345408,223.2,223.0,0.82201472]
[1693446394626,0.07345408,223.2,223.0,0.89533049]
[1693446394925,0.07345408,223.2,223.0,0.07331577]
[1693446399929,0.07345408,223.19,222.99,0.07331577]
[1693446400127,0.07345408,223.19,223.0,0.82202356]
[1693446405430,0.07345408,223.2,223.0,0.82202356]
[1693446406534,0.07345408,223.19,223.0,0.82202356]
[1693446407934,0.07345408,223.2,223.0,0.82202356]
[1693446411236,0.07345408,223.2,223.0,0.89533933]
[1693446411436,0.07345408,223.2,223.0,0.07331577]
[1693446416740,0.07345408,223.19,222.99,0.07331577]
[1693446416933,0.07345408,223.19,223.0,0.82198158]
[1693446417734,0.07345408,223.2,223.0,0.89529735]
[1693446417939,0.07345408,223.2,223.0,0.07331577]
[1693446418239,0.07345408,223.2,223.01,0.82197337]
[1693446420040,0.07345408,223.2,223.0,0.07331577]
[1693446421858,0.07345408,223.2,223.01,0.82195991]
[1693446430845,0.07345408,223.2,222.99,0.07331577]
[1693446431045,0.07345408,223.2,223.0,0.8219724]
[1693446434653,0.07345408,223.2,223.0,0.89528817]
[1693446434851,0.07345408,223.2,223.01,0.8219724]
[1693446436053,0.07345408,223.2,222.99,0.07331577]
[1693446436252,0.07345408,223.2,223.0,0.82197864]
[1693446439755,0.07345408,223.2,223.0,0.89529441]
[1693446440060,0.07345408,223.2,223.0,0.07331577]
[1693446444752,0.07345408,223.2,223.01,0.82197837]
[1693446449860,0.07345408,223.2,223.0,0.07331577]
[1693446454560,0.07345408,223.2,223.01,0.82199877]
[1693446454754,0.07345408,223.2,223.0,0.07331577]
[1693446461267,0.07345408,223.2,223.01,0.82199718]
[1693446461666,0.07345408,223.2,223.0,0.07331577]
[1693446463371,0.07345408,223.2,223.01,0.82201536]
[1693446473171,0.07345408,223.21,223.01,0.82201536]
[1693446473878,0.07345408,223.21,223.01,0.89533113]
[1693446474178,0.07345408,223.21,223.02,0.82201536]
[1693446474677,0.07345408,223.21,223.0,0.07331577]
[1693446474876,0.07345408,223.21,223.01,0.82184301]
[1693446484287,0.07345408,223.26,223.04,0.07331577]
[1693446484482,0.07345408,223.27,223.05,0.82184301]
[1693446484683,0.07345408,223.27,223.02,0.07331577]
[1693446484887,0.07345408,223.27,223.03,0.89446259]
[1693446485187,0.07345408,223.27,223.04,0.82114682]
[1693446485389,0.07345408,223.27,223.05,0.82114682]
[1693446485688,0.07345408,223.28,223.02,0.07331577]
[1693446485987,0.07345408,223.23,222.97,0.07331577]
[1693446486190,0.07345408,223.23,222.98,0.82167451]
[1693446493390,0.07345408,223.23,222.98,0.89499028]
[1693446493590,0.07345408,223.23,222.99,0.82167451]
[1693446493985,0.07345408,223.23,223.0,0.82167451]
[1693446494188,0.07345408,223.23,222.98,0.82167451]
[1693446494390,0.07345408,223.23,222.99,0.82167451]
[1693446494788,0.07345408,223.23,223.0,0.82167451]
[1693446495092,0.07345408,223.23,223.01,0.82167451]
[1693446495392,0.07345408,223.23,222.97,0.07331577]
[1693446495592,0.07345408,223.23,222.98,0.82178097]
[1693446500495,0.07345408,223.23,222.98,0.89509674]
[1693446500800,0.07345408,223.23,222.99,0.82178097]
[1693446501394,0.07345408,223.23,223.0,0.82178097]
[1693446501591,0.07345408,223.23,223.01,0.82178097]
[1693446501795,0.07345408,223.23,222.99,0.82178097]
[1693446502095,0.07345408,223.23,223.0,0.82182078]
[1693446502296,0.07345408,223.23,222.99,0.82182078]
[1693446502496,0.07345408,223.23,223.0,0.82182078]
[1693446502699,0.07345408,223.23,223.01,0.82182078]
[1693446502999,0.07345408,223.23,222.98,0.07331577]
[1693446503298,0.07345408,223.23,222.99,0.82182121]
[1693446503894,0.07345408,223.23,223.0,0.82182121]
[1693446504099,0.07345408,223.23,223.01,0.82182121]
[1693446504291,0.07345408,223.23,222.97,0.07331577]
[1693446504492,0.07345408,223.23,222.98,0.89513229]
[1693446504696,0.07345408,223.23,222.99,0.82181652]
[1693446506596,0.07345408,223.23,223.0,0.82181652]
[1693446506803,0.07345408,223.23,222.98,0.82181652]
[1693446507003,0.07345408,223.23,222.99,0.82181652]
[1693446507303,0.07345408,223.22,223.0,0.82181652]
[1693446507505,0.07345408,223.22,222.97,0.07331577]
[1693446507506,0.07345408,223.22,223.01,0.82181652]
[1693446507702,0.07345408,223.22,222.97,0.07331577]
[1693446507904,0.07345408,223.22,222.98,0.82184558]
[1693446508304,0.07345408,223.23,222.98,0.82184558]
[1693446510706,0.07345408,223.22,222.98,0.82184558]
[1693446511306,0.07345408,223.23,222.98,0.82184558]
[1693446511605,0.07345408,223.22,222.98,0.82184558]
[1693446511807,0.07345408,223.23,222.98,0.82184558]
[1693446512710,0.07341239,223.23,222.98,0.82184558]
[1693446516605,0.07341239,223.22,222.98,0.82184558]
[1693446517112,0.07341239,223.23,222.98,0.82184558]
[1693446517511,0.07341239,223.22,222.98,0.82184558]
[1693446518311,0.07341239,223.23,222.98,0.82184558]
[1693446519508,0.07341239,223.22,222.98,0.89511705]
[1693446519710,0.07341239,223.22,222.99,0.82184558]
[1693446520416,0.07341239,223.2,223.0,0.07327147]
[1693446520608,0.07341239,223.2,223.01,0.82184558]
[1693446522809,0.07341239,223.2,223.0,0.07327147]
[1693446527114,0.07341239,223.2,223.01,0.82183118]
[1693446530421,0.07341239,223.2,223.0,0.07327147]
[1693446536624,0.07341239,223.2,222.99,0.07327147]
[1693446536824,0.07341239,223.19,223.0,0.82185139]
[1693446539521,0.07341239,223.2,223.0,0.82185139]
[1693446543829,0.07341239,223.2,222.99,0.07327147]
[1693446543830,0.07341239,223.19,222.99,0.07327147]
[1693446544028,0.07341239,223.19,223.0,0.82195211]
[1693446544822,0.07341239,223.19,222.99,0.07327147]
[1693446545027,0.07341239,223.19,223.0,0.82193241]
[1693446545631,0.07341239,223.2,223.0,0.82193241]
[1693446546726,0.07341239,223.2,222.98,0.07327147]
[1693446546927,0.07341239,223.2,222.99,0.89519058]
[1693446547132,0.07341239,223.2,223.0,0.82191911]
[1693446547729,0.07341239,223.2,222.99,0.82191911]
[1693446547928,0.07341239,223.19,223.0,0.82191589]
[1693446548132,0.07341239,223.2,222.98,0.07327147]
[1693446548330,0.07341239,223.2,222.99,0.82190689]
[1693446549033,0.07341239,223.2,222.99,0.89517836]
[1693446549333,0.07341239,223.2,223.0,0.82190689]
[1693446561145,0.07341239,223.19,222.98,0.07327147]
[1693446561339,0.07341239,223.19,222.99,0.82199103]
[1693446564446,0.07341239,223.2,222.99,0.82199103]
[1693446565540,0.07341239,223.19,222.99,0.82199103]
[1693446565947,0.07341239,223.2,222.99,0.82199103]
[1693446566147,0.07341239,223.19,222.99,0.82199103]
[1693446568449,0.07341239,223.19,222.99,0.8952625]
[1693446568649,0.07341239,223.19,223.0,0.82199103]
[1693446576755,0.07341239,223.19,222.99,0.07327147]
[1693446576948,0.07341239,223.18,222.97,0.07327147]
[1693446577147,0.07341239,223.17,222.98,0.82213979]
[1693446577648,0.07341239,223.18,222.96,0.07327147]
[1693446577850,0.07341239,223.18,222.97,0.82222838]
[1693446579747,0.07341239,223.18,222.98,0.82222838]
[1693446579951,0.07341239,223.18,222.95,0.07327147]
[1693446580150,0.07341239,223.18,222.96,0.82221791]
[1693446580753,0.07341239,223.19,222.96,0.82221791]
[1693446585755,0.14682478,223.15,222.94,0.07327147]
[1693446585954,0.07341239,223.13,222.89,0.07327147]
[1693446586149,0.07341239,223.13,222.9,0.82291677]
[1693446586655,0.14682478,223.15,222.9,0.82291677]
[1693446586656,0.07341239,223.15,222.9,0.82291677]
[1693446586856,0.07341239,223.15,222.91,0.82291677]
[1693446587058,0.07341239,223.15,222.87,0.07327147]
[1693446587259,0.07341239,223.15,222.88,0.82298232]
[1693446587655,0.07341239,223.16,222.88,0.82298232]
[1693446587854,0.07341239,223.16,222.89,0.82298232]
[1693446588053,0.07341239,223.16,222.79,0.14654294]
[1693446588054,0.07341239,223.16,222.9,0.82298232]
[1693446588359,0.07341239,223.16,222.91,0.82298232]
[1693446588555,0.07341239,223.17,222.85,0.07327147]
[1693446588758,0.07341239,223.17,222.86,0.82298871]
[1693446589759,0.07341239,223.18,222.86,0.82298871]
[1693446589958,0.07341239,223.18,222.87,0.82298871]
[1693446590160,0.07341239,223.18,222.85,0.82298871]
[1693446590459,0.07341239,223.18,222.86,0.82298871]
[1693446590760,0.07341239,223.18,222.87,0.82298871]
[1693446590957,0.07341239,223.18,222.88,0.82298871]
[1693446591159,0.07341239,223.18,222.84,0.82298871]
[1693446591358,0.07341239,223.18,222.85,0.82298871]
[1693446591554,0.07341239,223.18,222.84,0.82298871]
[1693446591855,0.07341239,223.19,222.85,0.82298871]
[1693446592063,0.07341239,223.19,222.84,0.82298871]
[1693446592260,0.07341239,223.19,222.85,0.82298871]
[1693446592461,0.07341239,223.19,222.86,0.82298871]
[1693446592663,0.07341239,223.19,222.87,0.82298871]
[1693446592962,0.07341239,223.19,222.88,0.82298871]
[1693446593161,0.07341239,223.19,222.89,0.82298871]
[1693446593363,0.07341239,223.19,222.9,0.82298871]
[1693446593563,0.07341239,223.19,222.84,0.82298871]
[1693446593863,0.07341239,223.19,222.85,0.82298871]
[1693446594062,0.07341239,223.19,222.83,0.82298871]
[1693446594263,0.07341239,223.19,222.84,0.82298871]
[1693446594456,0.07341239,223.19,222.85,0.82298871]
[1693446594655,0.07341239,223.2,222.86,0.82298871]
[1693446594962,0.07341239,223.2,222.76,0.14654294]
[1693446594963,0.07341239,223.2,222.87,0.82298871]
[1693446595163,0.07341239,223.2,222.88,0.82298871]
[1693446595363,0.07341239,223.2,222.84,0.82298871]
[1693446595665,0.07341239,223.2,222.85,0.82298871]
[1693446595962,0.07341239,223.2,222.86,0.82298871]
[1693446596158,0.07341239,223.2,222.87,0.82298871]
[1693446596363,0.07341239,223.2,222.88,0.82298871]
[1693446596563,0.07341239,223.2,222.89,0.82298871]
[1693446596758,0.07341239,223.2,222.83,0.82298871]
[1693446596963,0.07341239,223.2,222.84,0.82298871]
[1693446597161,0.07341239,223.2,222.82,0.07327147]
[1693446597162,0.07341239,223.2,222.85,0.82298871]
[1693446597359,0.07341239,223.2,222.83,0.82298871]
[1693446597561,0.07341239,223.2,222.84,0.82298871]
[1693446597760,0.07341239,223.2,222.85,0.82298871]
[1693446597961,0.07341239,223.2,222.83,0.82298871]
[1693446598162,0.07341239,223.2,222.82,0.07327147]
[1693446598163,0.07341239,223.2,222.84,0.82298871]
[1693446598363,0.07341239,223.2,222.83,0.82298871]
[1693446598566,0.07341239,223.21,222.84,0.82298871]
[1693446598865,0.07341239,223.21,222.85,0.82298871]
[1693446599066,0.07341239,223.21,222.83,0.82298871]
[1693446599267,0.07341239,223.21,222.84,0.82298871]
[1693446599567,0.07341239,223.2,222.85,0.82298871]
[1693446599768,0.07341239,223.2,222.83,0.82298871]
[1693446599962,0.07341239,223.21,222.84,0.82298871]
[1693446600166,0.07341239,223.21,222.85,0.82298871]
[1693446600367,0.07341239,223.21,222.83,0.82298871]
[1693446600666,0.07341239,223.21,222.84,0.82298871]
[1693446600867,0.07341239,223.21,222.85,0.82298871]
[1693446601067,0.07341239,223.21,222.83,0.82298871]
[1693446601367,0.07341239,223.21,222.84,0.82298871]
[1693446601567,0.07341239,223.2,222.85,0.82298871]
[1693446601767,0.07341239,223.2,222.83,0.82298871]
[1693446601962,0.07341239,223.2,222.82,0.07327147]
[1693446601963,0.07341239,223.2,222.84,0.82298871]
[1693446602165,0.07341239,223.2,222.85,0.82298871]
[1693446602365,0.07341239,223.2,222.83,0.82298871]
[1693446602565,0.07341239,223.2,222.84,0.82298871]
[1693446602765,0.07341239,223.2,222.85,0.82298871]
[1693446602969,0.07341239,223.2,222.86,0.82298871]
[1693446603163,0.07341239,223.2,222.87,0.82298871]
[1693446603362,0.07341239,223.2,222.88,0.82298871]
[1693446603567,0.07341239,223.2,222.83,0.82298871]
[1693446603766,0.07341239,223.2,222.84,0.82298871]
[1693446603969,0.07341239,223.2,222.85,0.82298871]
[1693446604163,0.07341239,223.2,222.86,0.82298871]
[1693446604364,0.07341239,223.2,222.83,0.82298871]
[1693446604671,0.07341239,223.2,222.84,0.82298871]
[1693446604971,0.07341239,223.2,222.85,0.82298871]
[1693446605164,0.07341239,223.2,222.83,0.82298871]
[1693446605367,0.07341239,223.2,222.86,0.82298871]
[1693446605568,0.07341239,223.2,222.87,0.82298871]
[1693446605763,0.07341239,223.2,222.88,0.82298871]
[1693446605965,0.07341239,223.2,222.89,0.82298871]
[1693446606169,0.07341239,223.2,222.83,0.82298871]
[1693446606369,0.07341239,223.2,222.84,0.82298871]
[1693446606568,0.07341239,223.2,222.59,0.97695299]
[1693446606871,0.07321256,223.2,222.86,0.82298871]
[1693446607070,0.07321256,223.2,222.83,0.82298871]
[1693446607267,0.07321256,223.2,222.84,0.82298871]
[1693446607465,0.07321256,223.2,222.85,0.82298871]
[1693446607668,0.07321256,223.2,222.86,0.82298871]
[1693446607868,0.07321256,223.2,222.84,0.82298871]
[1693446608069,0.07321256,223.2,222.85,0.82298871]
[1693446608267,0.07321256,223.19,222.86,0.82298871]
[1693446608468,0.07321256,223.19,222.87,0.82298871]
[1693446608668,0.07321256,223.19,222.84,0.82298871]
[1693446608873,0.07321256,223.19,222.85,0.82298871]
[1693446609173,0.07321256,223.19,222.86,0.82298871]
[1693446609373,0.07321256,223.19,222.84,0.82298871]
[1693446609673,0.07321256,223.19,222.85,0.82298871]
[1693446609874,0.07321256,223.19,222.86,0.82298871]
[1693446610074,0.07321256,223.19,222.84,0.82298871]
[1693446610266,0.07321256,223.19,222.85,0.82298871]
[1693446610466,0.07321256,223.19,222.86,0.82298871]
[1693446610672,0.07321256,223.18,222.87,0.82298871]
[1693446610872,0.07321256,223.18,222.88,0.82298871]
[1693446611068,0.07321256,223.18,222.84,0.07313966]
[1693446611069,0.07321256,223.18,222.85,0.82298871]
[1693446611373,0.07321256,223.18,222.86,0.82298871]
[1693446611571,0.07321256,223.18,222.87,0.82298871]
[1693446611773,0.07321256,223.18,222.88,0.82298871]
[1693446611974,0.07321256,223.18,222.85,0.82298871]
[1693446612170,0.07321256,223.18,222.86,0.82298871]
[1693446612370,0.07321256,223.18,222.87,0.82298871]
[1693446612570,0.07321256,223.18,222.88,0.82298871]
[1693446612771,0.07321256,223.17,222.89,0.82298871]
[1693446612972,0.07321256,223.17,222.85,0.82298871]
[1693446613170,0.07321256,223.17,222.86,0.82298871]
[1693446613374,0.07321256,223.17,222.85,0.82298871]
[1693446613574,0.07321256,223.17,222.86,0.82298871]
[1693446613772,0.07321256,223.17,222.87,0.82298871]
[1693446614077,0.07321256,223.17,222.88,0.82298871]
[1693446614376,0.07321256,223.17,222.89,0.82298871]
[1693446614572,0.07321256,223.17,222.86,0.82298871]
[1693446614771,0.07321256,223.17,222.87,0.82298871]
[1693446614972,0.07321256,223.17,222.88,0.82298871]
[1693446615172,0.07321256,223.17,222.89,0.82298871]
[1693446615378,0.07321256,223.17,222.86,0.82298871]
[1693446615578,0.07321256,223.16,222.87,0.82298871]
[1693446616478,0.07321256,223.16,222.88,0.82298871]
[1693446616679,0.07321256,223.15,222.86,0.89612837]
[1693446616878,0.07321256,223.15,222.87,0.82298871]
[1693446618683,0.07321256,223.14,222.87,0.89612837]
[1693446618984,0.07321256,223.14,222.88,0.82298871]
[1693446619582,0.07321256,223.13,222.88,0.89612837]
[1693446619885,0.07321256,223.13,222.89,0.82298871]
[1693446620685,0.07321256,223.11,222.9,0.07313966]
[1693446620882,0.07321256,223.11,222.91,0.82298871]
[1693446622185,0.07321256,223.1,222.89,0.07313966]
[1693446622387,0.07321256,223.1,222.9,0.82310281]
[1693446623783,0.07321256,223.11,222.9,0.82310281]
[1693446627483,0.07321256,223.11,222.89,0.82310281]
[1693446627684,0.07321256,223.11,222.9,0.82309618]
[1693446627886,0.07321256,223.11,222.88,0.07313966]
[1693446628083,0.07321256,223.11,222.89,0.82308753]
[1693446645305,0.07321256,223.1,222.89,0.82308753]
[1693446645504,0.07321256,223.11,222.89,0.82308753]
[1693446645705,0.07321256,223.1,222.89,0.82308753]
[1693446646109,0.07321256,223.11,222.89,0.82308753]
[1693446646613,0.07321256,223.1,222.89,0.82308753]
[1693446649114,0.07321256,223.1,222.89,0.89622719]
[1693446649316,0.07321256,223.1,222.9,0.82308753]
[1693446650213,0.07321256,223.1,222.88,0.07313966]
[1693446650416,0.07321256,223.1,222.89,0.8231138]
[1693446653914,0.07321256,223.1,222.89,0.89625346]
[1693446654115,0.07321256,223.1,222.82,0.14627933]
[1693446654116,0.07321256,223.1,222.9,0.8231138]
[1693446654310,0.07321256,223.1,222.89,0.8231138]
[1693446654615,0.07321256,223.1,222.9,0.82309121]
[1693446665825,0.07321256,223.09,222.9,0.82309121]
[1693446678835,2.4404189,223.23,222.9,0.82309121]
[1693446679035,0.07353652,223.09,222.89,0.07346177]
[1693446679435,0.07353652,223.09,222.9,0.8229671]
[1693446685543,0.07353652,223.09,222.89,0.07346177]
[1693446685742,2.4512173,223.23,222.88,0.07346177]
[1693446685743,0.07353652,223.08,222.88,0.07346177]
[1693446686041,0.07353652,223.08,222.87,0.07346177]
[1693446686243,0.07353652,223.08,222.88,0.82311086]
[1693446688542,0.07353652,223.09,222.88,0.82311086]
[1693446701053,0.07353652,223.09,222.87,0.82311086]
[1693446701255,0.07353652,223.04,222.81,0.07346177]
[1693446701455,0.07353652,223.04,222.82,0.82373038]
[1693446701651,0.07353652,223.05,222.82,0.82373038]
[1693446701855,0.07353652,223.05,222.83,0.82373038]
[1693446702058,0.07353652,223.05,222.8,0.07346177]
[1693446702254,0.07353652,223.05,222.81,0.82373119]
[1693446702756,0.07353652,223.06,222.8,0.82373119]
[1693446702951,0.07353652,223.06,222.81,0.82373119]
[1693446703152,0.07353652,223.06,222.79,0.82373119]
[1693446703456,0.07353652,223.05,222.8,0.82373119]
[1693446703757,0.07353652,223.05,222.81,0.82373119]
[1693446703950,0.07353652,223.05,222.76,0.82373119]
[1693446704154,0.07353652,223.05,222.77,0.82396019]
[1693446704354,0.07353652,223.05,222.78,0.82396019]
[1693446704555,0.07353652,223.05,222.79,0.82396019]
[1693446704758,0.07353652,223.06,222.76,0.82396019]
[1693446704954,0.07353652,223.06,222.77,0.82396019]
[1693446705157,0.07353652,223.06,222.78,0.82396019]
[1693446705349,0.07353652,223.06,222.79,0.82396019]
[1693446705551,0.07353652,223.07,222.75,0.82396019]
[1693446705756,0.07353652,223.07,222.76,0.82396019]
[1693446705956,0.07353652,223.07,222.77,0.82396019]
[1693446706157,0.07353652,223.07,222.78,0.82396019]
[1693446706357,0.07353652,223.07,222.75,0.82396019]
[1693446706557,0.07353652,223.07,222.76,0.82396019]
[1693446706758,0.07353652,223.08,222.77,0.82396019]
[1693446706957,0.07353652,223.08,222.73,0.07346177]
[1693446706958,0.07353652,223.08,222.78,0.82396019]
[1693446707157,0.07353652,223.08,222.74,0.82396019]
[1693446707456,0.07353652,223.08,222.75,0.82396019]
[1693446707653,0.07353652,223.08,222.76,0.82396019]
[1693446707855,0.07353652,223.08,222.73,0.07346177]
[1693446707856,0.07353652,223.08,222.77,0.82396019]
[1693446708051,0.07353652,223.08,222.74,0.82396019]
[1693446708253,0.07353652,223.08,222.75,0.82396019]
[1693446708452,0.07353652,223.08,222.76,0.82396019]
[1693446708658,0.07353652,223.09,222.74,0.82396019]
[1693446708856,0.07353652,223.09,222.75,0.82396019]
[1693446709060,0.07353652,223.09,222.73,0.82396019]
[1693446709257,0.07353652,223.09,222.74,0.82396019]
[1693446709457,0.07353652,223.09,222.75,0.82396019]
[1693446709662,0.07353652,223.09,222.76,0.82396019]
[1693446709860,0.07353652,223.09,222.73,0.82396019]
[1693446710055,0.07353652,223.09,222.74,0.82396019]
[1693446710259,0.07353652,223.09,222.75,0.82396019]
[1693446710459,0.07353652,223.09,222.76,0.82396019]
[1693446710660,0.07353652,223.1,222.73,0.82396019]
[1693446710859,0.07353652,223.1,222.74,0.82396019]
[1693446711055,0.07353652,223.1,222.75,0.82396019]
[1693446711256,0.07353652,223.1,222.73,0.82396019]
[1693446711464,0.07353652,223.1,222.74,0.82396019]
[1693446711761,0.07353652,223.1,222.75,0.82396019]
[1693446711962,0.07353652,223.1,222.73,0.82396019]
[1693446712162,0.07353652,223.1,222.74,0.82396019]
[1693446712362,0.07353652,223.1,222.75,0.82396019]
[1693446712662,0.07353652,223.1,222.76,0.82396019]
[1693446712865,0.07353652,223.1,222.77,0.82396019]
[1693446713063,0.07353652,223.1,222.73,0.82396019]
[1693446713363,0.07353652,223.1,222.74,0.82396019]
[1693446713662,0.07353652,223.1,222.75,0.82396019]
[1693446713857,0.07353652,223.1,222.72,0.82396019]
[1693446714060,0.07353652,223.1,222.73,0.82396019]
[1693446714260,0.07353652,223.1,222.74,0.82396019]
[1693446714459,0.07353652,223.1,222.72,0.82396019]
[1693446714661,0.07353652,223.1,222.73,0.82396019]
[1693446714857,0.07353652,223.1,222.74,0.82396019]
[1693446715064,0.07353652,223.1,222.75,0.82396019]
[1693446715263,0.07353652,223.1,222.71,0.07346177]
[1693446715264,0.07353652,223.1,222.72,0.82396019]
[1693446715458,0.07353652,223.1,222.73,0.82396019]
[1693446715658,0.07353652,223.1,222.72,0.82396019]
[1693446715966,0.07353652,223.1,222.73,0.82396019]
[1693446716158,0.07353652,223.1,222.74,0.82396019]
[1693446716358,0.07353652,223.1,222.72,0.82396019]
[1693446716558,0.07353652,223.1,222.73,0.82396019]
[1693446716756,0.07353652,223.1,222.74,0.82396019]
[1693446716958,0.07353652,223.1,222.75,0.82396019]
[1693446717163,0.07353652,223.1,222.72,0.82396019]
[1693446717357,0.07353652,223.1,222.73,0.82396019]
[1693446717561,0.07353652,223.1,222.74,0.82396019]
[1693446717763,0.07353652,223.1,222.72,0.82396019]
[1693446717963,0.07353652,223.1,222.73,0.82396019]
[1693446718165,0.07353652,223.1,222.74,0.82396019]
[1693446718366,0.07353652,223.1,222.72,0.82396019]
[1693446718560,0.07353652,223.1,222.73,0.82396019]
[1693446718759,0.07353652,223.1,222.74,0.82396019]
[1693446719064,0.07353652,223.09,222.75,0.82396019]
[1693446719268,0.07353652,223.09,222.76,0.82396019]
[1693446719466,0.07353652,223.09,222.77,0.82396019]
[1693446719666,0.07353652,223.09,222.78,0.82396019]
[1693446719868,0.07353652,223.09,222.71,0.82396019]
[1693446720167,0.07353652,223.09,222.72,0.82396019]
[1693446720369,0.07353652,223.09,222.71,0.82396019]
[1693446720567,0.07353652,223.09,222.72,0.82396019]
[1693446720767,0.07353652,223.09,222.73,0.82396019]
[1693446720961,0.07353652,223.09,222.74,0.82396019]
[1693446721162,0.07353652,223.09,222.72,0.82396019]
[1693446721467,0.07353652,223.09,222.73,0.82396019]
[1693446721664,0.07353652,223.09,222.72,0.82396019]
[1693446721868,0.07353652,223.09,222.73,0.82396019]
[1693446722065,0.07353652,223.09,222.72,0.82396019]
[1693446722266,0.07353652,223.09,222.73,0.82396019]
[1693446722469,0.07353652,223.09,222.72,0.82396019]
[1693446722669,0.07353652,223.09,222.73,0.82396019]
[1693446722869,0.07353652,223.09,222.74,0.82396019]
[1693446723065,0.07353652,223.09,222.72,0.82396019]
[1693446723269,0.07353652,223.09,222.73,0.82396019]
[1693446723469,0.07353652,223.09,222.72,0.82396019]
[1693446723671,0.07353652,223.09,222.73,0.82396019]
[1693446723870,0.07353652,223.09,222.74,0.82396019]
[1693446724072,0.07353652,223.09,222.75,0.82396019]
[1693446724268,0.07353652,223.09,222.76,0.82396019]
[1693446724470,0.07353652,223.09,222.77,0.82396019]
[1693446724668,0.07353652,223.09,222.78,0.82396019]
[1693446724872,0.07353652,223.09,222.72,0.82396019]
[1693446725074,0.07353652,223.09,222.73,0.82396019]
[1693446725273,0.07353652,223.09,222.74,0.82396019]
[1693446725473,0.07353652,223.09,222.72,0.82396019]
[1693446725667,0.07353652,223.09,222.73,0.82396019]
[1693446725873,0.07353652,223.09,222.74,0.82396019]
[1693446726069,0.07353652,223.09,222.75,0.82396019]
[1693446726271,0.07353652,223.09,222.76,0.82396019]
[1693446726468,0.07353652,223.09,222.77,0.82396019]
[1693446726775,0.07353652,223.09,222.78,0.82396019]
[1693446726968,0.07353652,223.09,222.79,0.82396019]
[1693446727168,0.07353652,223.09,222.8,0.82396019]
[1693446727369,0.07353652,223.09,222.81,0.82396019]
[1693446727676,0.07353652,223.08,222.72,0.07346177]
[1693446727878,0.07353652,223.08,222.73,0.82404731]